Cogmind - Beta 16 @@@ ROGUE MODE // 2025.12.02 @ 20:47:27 Player: Vyckalino Result: Destroyed by as-66523 with Assembled Maul Performance ------------- Evolutions (1) 500 Regions Visited (4) 800 Robots Destroyed (21) 105 Value Destroyed (512) 512 Prototype IDs (1) 20 Alien Tech Used (0) 0 Bonus (0) 0 TOTAL SCORE: 1937 Bonus ------- None Cogmind --------- Core Integrity 0/400 Matter 300/300 Energy 100/100 System Corruption 9% Temperature Cool (0) Movement Core (50) Location -9/Mines Parts ------- > --- POWER (2) -------- (None) > --- PROPULSION (3) --- (None) > --- UTILITY (2) ------ (None) > --- WEAPON (2) ------- (None) > --- INVENTORY (5) ---- (None) Peak State ------------ > --- POWER ------------ Light Deuterium Engine Light Deuterium Engine > --- PROPULSION ------- Aerolev Unit Aerolev Unit Aerolev Unit > --- UTILITY ---------- Targeting Computer ECM Suite > --- WEAPON ----------- Field Laser Field Laser > --- INVENTORY -------- Light Deuterium Engine Light Deuterium Engine Aerolev Unit Flight Unit [Rating: 27] Favorites ----------- Power Light Ion Engine Engine Light Ion Engine Propulsion Aluminum Leg Treads Light Treads Leg Aluminum Leg Hover Unit Aerolev Unit Flight Unit Flight Unit Utility Small Storage Unit Device ECM Suite Storage Small Storage Unit Processor Targeting Computer Weapon Light Assault Rifle Energy Gun Field Laser Ballistic Gun Light Assault Rifle Ballistic Cannon Light Cannon Launcher Grenade Launcher Build | -11 -10 -10 -9 -9 ------- Run | Yrd Mat Min Mat Min Slots Evolved 2 | . . . 2 . Power 1 | . . . 1 . Propulsion 1 | . . . 1 . Utility . | . . . . . Weapon . | . . . . . Parts Attached 40 | 8 5 12 9 6 Power 8 | 1 . 3 2 2 Engine 8 | 1 . 3 2 2 Core . | . . . . . Reactor . | . . . . . Propulsion 13 | 4 2 2 5 . Treads 2 | 2 . . . . Leg 2 | 2 . . . . Wheel . | . . . . . Hover 4 | . . . 4 . Flight 5 | . 2 2 1 . Utility 4 | 1 1 2 . . Device 1 | . . 1 . . Storage 1 | 1 . . . . Processor 2 | . 1 1 . . Hackware . | . . . . . Protection . | . . . . . Artifact . | . . . . . Weapon 15 | 2 2 5 2 4 Energy Gun 4 | . . . 2 2 Energy Cannon . | . . . . . Ballistic Gun 5 | 2 . 3 . . Ballistic Cannon 4 | . 2 1 . 1 Launcher 2 | . . 1 . 1 Special Weapon . | . . . . . Impact Weapon . | . . . . . Slashing Weapon . | . . . . . Piercing Weapon . | . . . . . Special Melee Weapon . | . . . . . Unidentified Prototypes 1 | . . . 1 . Parts Lost 12 | . . 1 1 10 Power 5 | . . 1 . 4 Propulsion 3 | . . . . 3 Utility 2 | . . . 1 1 Weapon 2 | . . . . 2 Highest Loss Streak 5 | . . 1 1 5 To Critical Strikes . | . . . . . Average Backups 3 | 2 3 4 4 3 Power 1 | 1 . . 1 1 Propulsion 1 | 1 1 1 1 . Utility . | . . . . . Weapon . | . . 1 . 1 Tool/Special . | . . . . . Unused Backups 10 | 1 3 3 3 . Power 1 | . 1 . . . Propulsion 4 | 1 1 1 1 . Utility 3 | . 1 1 1 . Weapon 2 | . . 1 1 . Tool/Special . | . . . . . Average Slot Usage (%) 78 | . 84 71 88 68 Engine 17 | . 14 13 21 19 Leg 2 | . 20 . . . Hover 15 | . . . 29 21 Flight 9 | . 6 28 3 . Device 4 | . . 5 8 . Storage 1 | . 10 . . . Processor 7 | . 7 1 11 10 Energy Gun 5 | . . . 8 10 Ballistic Gun 6 | . 21 12 . . Ballistic Cannon 3 | . 2 8 . 4 Launcher 2 | . . 1 5 1 Peak Build Rating 27 | 6 7 6 27 27 Average Rating 10 | 5 5 5 22 19 On Entrance 8 | . 6 4 6 26 Avg Prop Armor Cover (%) 6 | . . . 5 8 Naked Turns . | . . . . . Heaviest Build 18 | 11 11 8 18 17 Greatest Support 40 | 40 20 8 24 24 Greatest Overweight (x) 4 | . . . 1 4 Average Overweight (x) . | . . . . . Largest Inventory Capacity 8 | 8 8 5 5 5 Average Capacity 6 | 7 7 5 5 5 Most Carried 7 | 6 7 5 5 5 Average Carried 3 | 2 3 4 4 3 Final Capacity 8 | 8 5 5 5 5 Final Carried 5 | 3 4 4 5 . Class Distribution -------------------- 100% | Mutant Dominant Class ---------------- Mutant | -10/Materials Mutant | -10/Mines Mutant | -9/Materials Mutant | -9/Mines Resources | -11 -10 -10 -9 -9 ----------- Run | Yrd Mat Min Mat Min Matter Collected 1026 | 236 155 201 190 244 Remotely . | . . . . . Salvage Created 491 | . 155 42 200 94 Parts 35 | . 10 8 14 3 Haulers Intercepted . | . . . . . Recyclers Shooed . | . . . . . Parts Field Recycled . | . . . . . Retrieved Matter . | . . . . . Parts Self-Destructed . | . . . . . Prevented . | . . . . . Parts Restored . | . . . . . Kills | -11 -10 -10 -9 -9 ------- Run | Yrd Mat Min Mat Min Combat Hostiles Destroyed 23 | . 3 5 5 10 Guns 9 | . 3 . 3 3 Cannons 7 | . . 4 . 3 AOE 7 | . . 1 2 4 Classes Destroyed 10 | . 2 1 5 2 Builder 1 | . . . 1 . Mechanic 1 | . . . 1 . Operator 1 | . . . 1 . Watcher 1 | . 1 . . . Swarmer 8 | . . 5 . 3 Grunt 5 | . 3 . 2 . Brawler 1 | . . . 1 . Sentry 2 | . . . 2 . Demolisher 1 | . . . . 1 Assembled 6 | . . . . 6 Best Kill Streak 3 | . 3 3 2 3 Combat Bots Only 3 | . 1 3 2 3 Max Kills in Single Turn 3 | . 1 1 1 3 Gunslinging . | . . . . . Exploded 3 | . . 1 1 3 Melee . | . . . . . Uniques/NPCs Destroyed . | . . . . . Combat | -11 -10 -10 -9 -9 -------- Run | Yrd Mat Min Mat Min Hostile Shots Fired 143 | . 29 22 25 67 Missed 47 | . 12 7 10 18 Hits 96 | . 17 15 15 49 Melee 10 | . . . 2 8 Projectile 86 | . 17 15 13 41 AOE 5 | . . . . 5 Critical Strikes 1 | . . . 1 . Part Disruptions 1 | . . . . 1 Damage Taken 1647 | . 246 127 356 918 Core 499 | . 73 22 73 331 Absorbed by Shields . | . . . . . Regen/Repaired (Parts) 42 | . . . 42 . Core Remaining (%) 81 | 100 . 62 . . Volleys Fired 84 | . 17 18 23 26 Largest 2 | . 2 2 2 2 Hottest 126 | . 40 50 126 126 Shots Fired 128 | . 33 24 33 38 Gun 85 | . 32 9 20 24 Cannon 27 | . 1 15 . 11 Launcher 16 | . . . 13 3 Special . | . . . . . Kinetic 68 | . 33 24 . 11 Thermal 44 | . . . 20 24 Explosive 16 | . . . 13 3 Electromagnetic . | . . . . . Robot Hit Streak 22 | . 4 5 22 5 Robot Miss Streak 5 | . 2 3 2 5 Penetration Max . | . . . . . Secondary Targets 1 | . 1 . . . Max Gunslinging Chain 1 | . 1 . . . Shots Hit Robots 81 | . 21 14 25 21 Core Hits 51 | . 10 5 16 20 Critical Kills 1 | . . . . 1 Critical Parts Destroyed . | . . . . . Critical Strikes 4 | . . . 2 2 Burn 2 | . . . 2 . Destroy 2 | . . . . 2 Melee Attacks . | . . . . . Impact . | . . . . . Slashing . | . . . . . Piercing . | . . . . . Sneak Attacks . | . . . . . Combat Hostiles . | . . . . . Follow-up Attacks . | . . . . . Damage Inflicted 1740 | . 237 231 626 646 Guns 755 | . 217 46 220 272 Cannons 313 | . 20 143 . 150 Explosions 613 | . . 42 347 224 Melee . | . . . . . Ramming 59 | . . . 59 . Kinetic 576 | . 237 189 . 150 Thermal 534 | . . 42 220 272 Explosive 571 | . . . 347 224 Electromagnetic . | . . . . . Impact . | . . . . . Slashing . | . . . . . Piercing . | . . . . . Highest Corruption 9 | . . . 4 9 Average Corruption 4 | . . . 4 4 Corruption Purged . | . . . . . Corruption Blocked . | . . . . . Effects 8 | . . . 3 5 Message Errors 3 | . . . 3 . Matter Fused 5 | . . . . 5 Overload Shots . | . . . . . Overflow Damage 46 | . . 13 22 11 Projectiles 13 | . . 13 . . Explosions 11 | . . . . 11 Melee 22 | . . . 22 . Knockbacks 3 | . 1 . . 2 Impact . | . . . . . Kinetic 3 | . 1 . . 2 Secondary . | . . . . . Self-Inflicted Damage 158 | . . . 63 95 Shots 4 | . . . 1 3 Rammed 4 | . . . 4 . Targets Rammed 4 | . . . 4 . Kicked . | . . . . . Crushed . | . . . . . Highest Temperature 521 | . 15 18 521 369 Average Temperature 121 | . 8 8 141 121 Received Heat Transfer 359 | . 135 . 84 140 Effects 13 | . . . 11 2 Shutdowns 4 | . . . 3 1 Energy Bleed 1 | . . . . 1 Matter Decay 3 | . . . 3 . Short Circuit 1 | . . . 1 . Damage (minor) 1 | . . . 1 . Damage (major) 2 | . . . 2 . Damage (core) 1 | . . . 1 . Siege Activations . | . . . . . Martial Activations . | . . . . . Shielding Activations . | . . . . . Robots Disrupted . | . . . . . Combat Hostiles . | . . . . . Robots Corrupted 1 | . . . 1 . Combat Hostiles . | . . . . . Parts Fried . | . . . . . Impact Corruptions 2 | . . . 2 . Robots Melted . | . . . . . Combat Hostiles . | . . . . . Parts Melted 1 | . . . 1 . Heat Transferred 1271 | . . 50 629 592 Parts Sabotaged . | . . . . . Parts Stolen . | . . . . . Parts Stripped . | . . . . . Power Chain Reactions . | . . . . . Alert | -11 -10 -10 -9 -9 ------- Run | Yrd Mat Min Mat Min Maximum Alert Level . | . . . . . Low Security (%) 100 | 100 100 100 100 100 Level 1 . | . . . . . Level 2 . | . . . . . Level 3 . | . . . . . Level 4 . | . . . . . Level 5 . | . . . . . High Security . | . . . . . Max Security . | . . . . . Peak Influence 107 | . 57 107 98 63 Initial 22 | . . 10 . 22 Average 14 | . 24 46 20 12 Influence Increases 612 | . 89 147 254 122 Destroy 0b10 Robot/C 340 | . 60 100 100 80 Destroy 0b10 Robot/NC 20 | . 5 . 15 . Destroy Leader 92 | . 22 10 40 20 Allied During Kill 16 | . . 16 . . Successful Hack 4 | . 2 . 2 . Disable Machine 30 | . . 15 15 . Destroy Structure 65 | . . 6 37 22 Partial Spotted 15 | . . . 15 . Lose Combat Pursuer 30 | . . . 30 . Influence Decreases 612 | . 62 174 196 180 Entered New Map 53 | . . 17 . 36 Time Decay 389 | . 62 147 98 82 Lost Part 82 | . . 10 10 62 Purge Threat 88 | . . . 88 . Squads Dispatched 4 | . 1 . 3 . Investigation 3 | . 1 . 2 . Extermination . | . . . . . Reinforcement 1 | . . . 1 . Assault . | . . . . . Garrison . | . . . . . Intercept . | . . . . . Searches Triggered . | . . . . . Construction Impeded 1 | . . . 1 . Haulers Reinforced . | . . . . . Active Scanning Responses . | . . . . . Cargo Convoy Interrupts . | . . . . . Stealth | -11 -10 -10 -9 -9 --------- Run | Yrd Mat Min Mat Min Distress Signals 1 | . . . 1 . Communications Jammed . | . . . . . Distress Signals . | . . . . . Times Spotted 48 | . 6 10 15 17 Peak Tracking Total 6 | . 4 3 6 4 Tactical Retreats 4 | . . . 3 1 ECM-based Alert Blocks 5 | . . . 5 . Traps | -11 -10 -10 -9 -9 ------- Run | Yrd Mat Min Mat Min Traps Triggered . | . . . . . Indirectly . | . . . . . Trap Hack Attempts . | . . . . . Triggered . | . . . . . Disarmed . | . . . . . Reprogrammed . | . . . . . Reused . | . . . . . Traps Extracted . | . . . . . Installed . | . . . . . Triggered . | . . . . . Machines | -11 -10 -10 -9 -9 ---------- Run | Yrd Mat Min Mat Min Machines Disabled 2 | . . 1 1 . Max in Single Turn 1 | . . 1 1 . Machines Repaired . | . . . . . Machines Dismantled . | . . . . . Machines Sabotaged . | . . . . . Overloaded Fab Kills . | . . . . . Hacking | -11 -10 -10 -9 -9 --------- Run | Yrd Mat Min Mat Min Machines Accessed 7 | . 1 . 6 . Terminals 5 | . 1 . 4 . Fabricators . | . . . . . Repair Stations 1 | . . . 1 . Recycling Units 1 | . . . 1 . Scanalyzers . | . . . . . Garrison Access . | . . . . . Total Hacks 18 | . 3 . 15 . Successful 12 | . 3 . 9 . Failed 6 | . . . 6 . Catastrophic 2 | . . . 2 . Database Lockouts . | . . . . . Manual . | . . . . . Terminals 12 | . 3 . 9 . Fabricators . | . . . . . Repair Stations 4 | . . . 4 . Recycling Units 2 | . . . 2 . Scanalyzers . | . . . . . Garrison Access . | . . . . . Terminal Hacks 8 | . 3 . 5 . Record 4 | . 1 . 3 . Alert Level 3 | . 2 . 1 . Unreport Threat 1 | . . . 1 . Fabricator Hacks . | . . . . . Repair Station Hacks 2 | . . . 2 . Scan Component 1 | . . . 1 . Repair 1 | . . . 1 . Recycling Unit Hacks 2 | . . . 2 . Report Inventory 1 | . . . 1 . Retrieve Matter 1 | . . . 1 . Scanalyzer . | . . . . . Garrison Access Hacks . | . . . . . Unauthorized Hacks . | . . . . . Terminals . | . . . . . Fabricators . | . . . . . Repair Stations . | . . . . . Recycling Units . | . . . . . Scanalyzers . | . . . . . Garrison Access . | . . . . . Data Cores Recovered 1 | . . . 1 . Used . | . . . . . Hacking Detections 6 | . 1 . 5 . Full Trace Events 3 | . 1 . 2 . Feedback Events . | . . . . . Feedback Blocked . | . . . . . Robot Schematics Acquired . | . . . . . Robots Built . | . . . . . Authchips . | . . . . . Time . | . . . . . Total Robot Build Rating . | . . . . . Part Schematics Acquired . | . . . . . Parts Built . | . . . . . Authchips . | . . . . . Time . | . . . . . Total Part Build Rating . | . . . . . Part Studies Acquired . | . . . . . Parts Repaired 1 | . . . 1 . Time 26 | . . . 26 . Parts Recycled . | . . . . . Recycled Matter . | . . . . . Retrieved Matter . | . . . . . Retrieved Components . | . . . . . Parts Scanalyzed . | . . . . . Part Schematics Acquired . | . . . . . Parts Damaged . | . . . . . Bothacking | -11 -10 -10 -9 -9 ------------ Run | Yrd Mat Min Mat Min Used RIF Installer . | . . . . . Robots Hacked . | . . . . . Non-combat . | . . . . . Combat . | . . . . . Robot Hacks Applied . | . . . . . Relay Couplers Released . | . . . . . Fabnet Peak Effective % . | . . . . . Robots Rewired . | . . . . . Allies Hacked . | . . . . . Hacks Repelled . | . . . . . Allies | -11 -10 -10 -9 -9 -------- Run | Yrd Mat Min Mat Min Total Allies 3 | . . 3 . . Largest Group 3 | . . 3 . . Highest-Rated Group 78 | . . 78 . . Highest-Rated Ally 31 | . . 31 . . Total Orders . | . . . . . Ally Attacks . | . . . . . Total Damage . | . . . . . Kills . | . . . . . Allies Corrupted . | . . . . . Allies Melted . | . . . . . Intel | -11 -10 -10 -9 -9 ------- Run | Yrd Mat Min Mat Min Active Infowar (turns) 448 | . . 134 314 . ECM 448 | . . 134 314 . Robot Analysis Total . | . . . . . Derelict Logs Recovered 2 | . . 2 . . Drone Launches . | . . . . . Drone Recoveries . | . . . . . Exploration | -11 -10 -10 -9 -9 ------------- Run | Yrd Mat Min Mat Min Turns Passed 2176 | 972 162 321 400 321 Spaces Moved 1774 | 143 125 634 617 255 Core 12 | 2 . . . 10 Treads 22 | 22 . . . . Legs 172 | 119 53 . . . Wheels . | . . . . . Hover 827 | . . . 582 245 Flight 741 | . 72 634 35 . Fastest Speed 34 | 50 37 37 34 42 Average Speed 52 | 125 72 37 42 67 Slowest Speed 250 | 160 120 37 110 250 Overloaded Moves . | . . . . . Propulsion Burnouts . | . . . . . Robots Hopped 1 | . . 1 . . Potential Cave-ins . | . . . . . Cave-ins Triggered . | . . . . . Exploration Rate (%) 49 | 24 25 93 46 60 Regions Visited 4 Branch Regions 2 Pre-discovered Areas 2 | . . 2 . . Known Exits Taken . | . . . . . Unknown Exits Taken 4 | 1 1 1 1 . Scrap Searched 2 | . . 1 . 1 Spaces Dug . | . . . . . Terrain Destroyed 84 | . . 6 52 26 Melee . | . . . . . Projectile 3 | . . . . 3 AOE 81 | . . 6 52 23 Terrain Rammed . | . . . . . Walls Destroyed . | . . . . . Machines Disabled . | . . . . . Actions | -11 -10 -10 -9 -9 --------- Run | Yrd Mat Min Mat Min Total 2900 | 935 173 700 722 370 Wait 899 | 774 2 11 40 72 Move 1768 | 142 124 631 616 255 Hop 1 | . . 1 . . Pick Up 49 | 10 9 12 15 3 Fast Attach 4 | . 1 3 . . Attach 21 | 6 3 3 4 5 Detach 8 | . 6 . . 2 Swap 21 | 2 1 7 10 1 Drop 41 | 1 10 14 10 6 Fire 84 | . 17 18 23 26 Melee . | . . . . . Ram 4 | . . . 4 . Kick . | . . . . . Crush . | . . . . . Escape Stasis . | . . . . . Rewire . | . . . . . Trap . | . . . . . Miscellaneous . | . . . . . Route ------- -11/Scrapyard -10/Materials -10/Mines (discovered 2 exits: *Mat x2) -9/Materials (discovered 3 exits: *Min / [*Sto x2]) -9/Mines History --------- Turn | Location | Event 45 | -11/Scrapyard | Discovered new exit (range 15) 973 | -11/Scrapyard | Entered Materials 974 | -10/Materials | Build established: Mutant 1122 | -10/Materials | Discovered new exit (range 13) 1135 | -10/Materials | Entered Mines 1138 | -10/Mines | Learned location of Zion (-7) 1186 | -10/Mines | Escorted by a lone wolf Derelict 1211 | -10/Mines | Learned Materials trap positions 1267 | -10/Mines | Discovered new exit (range 5) 1268 | -10/Mines | Learned location of Storage (-9) 1296 | -10/Mines | Discovered new exit (range 15) 1311 | -10/Mines | Found DCF Scrap (13 items) 1393 | -10/Mines | Joined a pair of Derelicts in attacking an 0b10 outpost 1456 | -10/Mines | Entered Materials 1456 | -9/Materials | Evolved 2 slots: Power x1, Propulsion x1 1457 | -9/Materials | Loaded intel: 21 trap records 1466 | -9/Materials | Discovered new exit (range 7) 1554 | -9/Materials | Discovered new exit (range 15) 1657 | -9/Materials | Repaired Grenade Launcher? 1788 | -9/Materials | Discovered new exit (range 7) 1856 | -9/Materials | Entered Mines 1857 | -9/Mines | Assembled infested the area 1875 | -9/Mines | Met a Derelict bent on vengeance 1881 | -9/Mines | A weapon hastily lodged in a ceiling crevice suddenly fell to the ground 2055 | -9/Mines | Lost 4 parts (1p2n1w) 2163 | -9/Mines | Core integrity fell below 50% 2173 | -9/Mines | Core integrity fell below 20% 2177 | -9/Mines | Destroyed by as-66523 with Assembled Maul Last Messages --------------- as-02186 destroyed. as-35609 destroyed. Acquired 11 matter. The unstable cave ceiling collapses. Acquired 8 matter. Acquired 11 matter. Acquired 7 matter. Dropped Broken Aerolev Unit. Dropped Field Laser. U-05 Engineer builds a Wall. Acquired 40 matter. Aerolev Unit destroyed. Destroyed Aerolev Unit. Targeting Computer destroyed. System corrupted by crushing effect (+5). as-62951 destroyed. Lgt. Deuterium Engine destroyed. Mni. Grenade Launcher destroyed. The unstable cave ceiling collapses. Lgt. Deuterium Engine destroyed. Map ----- +----------------------------------------------------+ | ???????????## ###### ####???????????????????? | | ???????????# #????????????????? | | ???????????# #######???????????????????? | | ???????????## ### #?????????????????????????? | | ????????????###??# #?????????????????????????? | | ?????????????????# #?????????????????????????? | | ?????????????##### #####?????????????????????? | | ?????????????# #?????????????????????? | | ?????????????# #?????????????????????? | | ?????????????# #?????????????????????? | | ?????????????# #?????????????????????? | | ?????????????# #?????????????????????? | | ?????????????# #??????????????#####??? | | ?????????????" #?????????????## ##?? | | ?????????????" #????????????## #?? | | ?????????????#X #????????###?# #?? | | ?????????????# #????????# ?## #??# | | ?????????????# #????????# ## ##### | | ?????????????# #?????????## | | ?????????????####### ###????###### | | ???????????????????# #??????# # | | ???????????????????# ##?????# #### ## # | | ???????????????????# a ##????## # # ### | | ??????????########## ##????# # #####?## | | ??????????? a ###### ## ####??????# | | ??????????????????# a@ # # ##????????? | | ?????????????????## a # # #????????? | | ?????????????????# ! ! *|= #????????? | | ?????????????????# *% #* #????????? | | ?????????????????## ## ## " [ #????????? | | ??????????????????###?####### [=######????????? | | ????????????????????????????## ##?????????????? | | ?????????????????????????????###??????????????? | | ??????????????????????????????????????????????? | | ??????????????????????????????????????????????? | | ??????????????????????????????????????????????? | | ??????????????????????????????????????????????? | | ??????????????????????????????????????????????? | | ??????????????????????????????????????????????? | | ??????????????????????????????????????????????? | | ??????????????????????????????????????????????? | | | | | | | | | | | | | | | | | | | +----------------------------------------------------+ Best States ------------- Heat Dissipation 28 Energy Generation 23 Energy Capacity 180 Matter Stores 300 Matter Capacity 300 Sight Range 16 Terrain Scan Density 10 ECM Strength 1 Evasion (%) 63 Targeting Accuracy 5 Recoil Reduction 2 Item Schematics ----------------- None Robot Schematics ------------------ None Fabricated ------------ Nothing Repaired ---------- Grenade Launcher | 30% | -9/Materials Studied --------- None Alien Tech Used ----------------- None Achievements -------------- DATA ERROR: Steam Global Achievement% Everything Is Under Control Part-time Mechanic Power Corrupts Risk Taker Well Done Challenges ------------ None Game ------ Seed InertialShieldShovel Manual? 0 Play Time 00:36:30 Cumulative 1.1 hours Start 2025.12.02 @ 19:54:13 End 2025.12.02 @ 20:47:27 Sessions 1 Manual Loads 0 Difficulty Rogue Special Mode None Game No. 2 Rogue 2 Adventurer 0 Explorer 0 Win Type - Total 0 Types 0/0/0/0/0/0/0/0/0/0 Lore% 0 Gallery% 2 Achievement% 3 Wizard Run 0 Options --------- Layout 1 ASCII 0 Keyboard 0 Movement Mouse Keybinds 0 Fullscreen 2 Font 24/Smallcaps Map View 50x35 Zoom Use 0% Tactical HUD 0 Map Filters NONE Filters NONE Steam 1 RUN: c9675277-7a9f-48ef-899c-d71c438f3855